[Event "December 5 Late 2023"]
[Site "https://www.chess.com"]
[Date "2023.12.05"]
[Round "2"]
[White "Skibbe, Willi"]
[Black "Chylewski, Patryk"]
[Result "0-1"]
[Board "137"]
[TimeControl "180+1"]
[WhiteFideId "4682190"]
[BlackFideId "1186191"]
[WhiteElo "2304"]
[BlackElo "2507"]
[WhiteTeam "GER"]
[BlackTeam "POL"]
[WhiteClock "0:00:00"]
[BlackClock "0:00:43"]

1. e4 {[%clk 0:03:00]}  c5 {[%clk 0:02:56]} 2. c3 {[%clk 0:03:00]}  d5 {[%clk 0:02:54]} 3. exd5 {[%clk 0:02:59]}  Qxd5 {[%clk 0:02:55]} 4. Nf3 {[%clk 0:02:58]}  e5 {[%clk 0:02:51]} 5. Na3 {[%clk 0:02:54]}  Nc6 {[%clk 0:02:48]} 6. Be2 {[%clk 0:02:53]}  Be7 {[%clk 0:02:44]} 7. d3 {[%clk 0:02:53]}  Nf6 {[%clk 0:02:43]} 8. O-O {[%clk 0:02:52]}  O-O {[%clk 0:02:43]} 9. Nc4 {[%clk 0:02:49]}  Re8 {[%clk 0:02:36]} 10. a4 {[%clk 0:02:48]}  Bf8 {[%clk 0:02:32]} 11. a5 {[%clk 0:02:44]}  Qd8 {[%clk 0:02:24]} 12. Bg5 {[%clk 0:02:41]}  Bf5 {[%clk 0:02:12]} 13. Re1 {[%clk 0:02:32]}  h6 {[%clk 0:02:09]} 14. Bh4 {[%clk 0:02:31]}  g5 {[%clk 0:01:42]} 15. Bg3 {[%clk 0:02:28]}  e4 {[%clk 0:01:42]} 16. dxe4 {[%clk 0:02:07]}  Nxe4 {[%clk 0:01:43]} 17. Nfe5 {[%clk 0:01:59]}  Nxg3 {[%clk 0:01:35]} 18. Bf3 {[%clk 0:00:29]}  Nxe5 {[%clk 0:00:50]} 19. Nxe5 {[%clk 0:00:25]}  Qf6 {[%clk 0:00:45]} 20. Qd5 {[%clk 0:00:00]}  Rad8 {[%clk 0:00:43]} 0-1

[Event "December 5 Late 2023"]
[Site "https://www.chess.com"]
[Date "2023.12.05"]
[Round "2"]
[White "Korol, Dimitry"]
[Black "Krzywda, Andrzej"]
[Result "0-1"]
[Board "140"]
[TimeControl "180+1"]
[WhiteFideId "14108003"]
[BlackFideId "1114565"]
[WhiteElo "2297"]
[BlackElo "2505"]
[WhiteTeam "UKR"]
[BlackTeam "POL"]
[WhiteClock "0:00:00"]
[BlackClock "0:00:39"]

1. d4 {[%clk 0:03:00]}  d5 {[%clk 0:02:57]} 2. c4 {[%clk 0:03:00]}  dxc4 {[%clk 0:02:54]} 3. Nf3 {[%clk 0:03:00]}  Nf6 {[%clk 0:02:54]} 4. Nc3 {[%clk 0:03:00]}  a6 {[%clk 0:02:53]} 5. e4 {[%clk 0:03:00]}  b5 {[%clk 0:02:53]} 6. e5 {[%clk 0:03:01]}  Nd5 {[%clk 0:02:52]} 7. a4 {[%clk 0:03:01]}  e6 {[%clk 0:02:49]} 8. axb5 {[%clk 0:02:59]}  Nb6 {[%clk 0:02:49]} 9. bxa6 {[%clk 0:02:58]}  Rxa6 {[%clk 0:02:50]} 10. Rxa6 {[%clk 0:02:57]}  Nxa6 {[%clk 0:02:47]} 11. Bxc4 {[%clk 0:02:35]}  Nxc4 {[%clk 0:02:46]} 12. Qa4+ {[%clk 0:02:34]}  c6 {[%clk 0:02:43]} 13. Qxc4 {[%clk 0:02:33]}  Nb4 {[%clk 0:02:43]} 14. Be3 {[%clk 0:01:34]}  Ba6 {[%clk 0:02:40]} 15. Qb3 {[%clk 0:01:31]}  Be7 {[%clk 0:02:19]} 16. Kd2 {[%clk 0:01:12]}  O-O {[%clk 0:02:19]} 17. Ra1 {[%clk 0:00:44]}  c5 {[%clk 0:02:19]} 18. Kc1 {[%clk 0:00:25]}  Nd3+ {[%clk 0:01:50]} 19. Kb1 {[%clk 0:00:23]}  c4 {[%clk 0:01:50]} 20. Qa4 {[%clk 0:00:19]}  Bb7 {[%clk 0:01:51]} 21. Qxc4 {[%clk 0:00:18]}  Nb4 {[%clk 0:01:48]} 22. Ra7 {[%clk 0:00:14]}  Bd5 {[%clk 0:01:47]} 23. Qc7 {[%clk 0:00:14]}  Qxc7 {[%clk 0:00:45]} 24. Rxc7 {[%clk 0:00:15]}  Bd8 {[%clk 0:00:46]} 25. Rc8 {[%clk 0:00:15]}  Bb6 {[%clk 0:00:46]} 26. Rxf8+ {[%clk 0:00:14]}  Kxf8 {[%clk 0:00:47]} 27. Nxd5 {[%clk 0:00:12]}  Nxd5 {[%clk 0:00:48]} 28. Kc2 {[%clk 0:00:10]}  f6 {[%clk 0:00:41]} 29. Kd3 {[%clk 0:00:05]}  Kf7 {[%clk 0:00:40]} 30. Kc4 {[%clk 0:00:05]}  Kg6 {[%clk 0:00:40]} 31. b4 {[%clk 0:00:04]}  Kf5 {[%clk 0:00:39]} 32. exf6 {[%clk 0:00:00]}  gxf6 {[%clk 0:00:39]} 0-1

[Event "December 5 Late 2023"]
[Site "https://www.chess.com"]
[Date "2023.12.05"]
[Round "2"]
[White "Baches Garcia, Guillermo"]
[Black "Weisz, Bryan"]
[Result "1-0"]
[Board "141"]
[TimeControl "180+1"]
[WhiteFideId "2209764"]
[BlackFideId "30934133"]
[WhiteElo "2501"]
[BlackElo "2296"]
[WhiteTeam "ESP"]
[BlackTeam "USA"]
[WhiteClock "0:00:13"]
[BlackClock "0:00:00"]

1. d4 {[%clk 0:03:00]}  c5 {[%clk 0:03:00]} 2. c3 {[%clk 0:02:58]}  cxd4 {[%clk 0:03:00]} 3. cxd4 {[%clk 0:02:59]}  d5 {[%clk 0:03:01]} 4. Nc3 {[%clk 0:02:59]}  Nc6 {[%clk 0:02:59]} 5. Nf3 {[%clk 0:03:00]}  Nf6 {[%clk 0:02:59]} 6. Bf4 {[%clk 0:03:00]}  Bf5 {[%clk 0:03:00]} 7. e3 {[%clk 0:03:00]}  e6 {[%clk 0:03:00]} 8. Bd3 {[%clk 0:03:01]}  Bd6 {[%clk 0:03:00]} 9. Bxd6 {[%clk 0:02:58]}  Bxd3 {[%clk 0:02:57]} 10. Ba3 {[%clk 0:02:54]}  Ba6 {[%clk 0:02:56]} 11. b4 {[%clk 0:02:51]}  O-O {[%clk 0:02:28]} 12. Rb1 {[%clk 0:02:26]}  Bc4 {[%clk 0:02:17]} 13. b5 {[%clk 0:02:10]}  Qa5 {[%clk 0:02:16]} 14. Bxf8 {[%clk 0:02:10]}  Ne4 {[%clk 0:02:01]} 15. Rc1 {[%clk 0:01:30]}  Rxf8 {[%clk 0:01:18]} 16. bxc6 {[%clk 0:01:28]}  bxc6 {[%clk 0:01:10]} 17. Qc2 {[%clk 0:01:26]}  Rb8 {[%clk 0:01:09]} 18. Nd2 {[%clk 0:01:23]}  Nxd2 {[%clk 0:00:57]} 19. Kxd2 {[%clk 0:01:16]}  c5 {[%clk 0:00:51]} 20. Rb1 {[%clk 0:01:14]}  Rc8 {[%clk 0:00:51]} 21. Qa4 {[%clk 0:01:08]}  Qd8 {[%clk 0:00:48]} 22. Qxa7 {[%clk 0:00:59]}  e5 {[%clk 0:00:42]} 23. g3 {[%clk 0:00:46]}  cxd4 {[%clk 0:00:38]} 24. exd4 {[%clk 0:00:45]}  Qg5+ {[%clk 0:00:36]} 25. Kc2 {[%clk 0:00:35]}  Bd3+ {[%clk 0:00:21]} 26. Kxd3 {[%clk 0:00:31]}  Qf5+ {[%clk 0:00:22]} 27. Kd2 {[%clk 0:00:25]}  Qxf2+ {[%clk 0:00:20]} 28. Ne2 {[%clk 0:00:26]}  e4 {[%clk 0:00:18]} 29. Rb8 {[%clk 0:00:20]}  e3+ {[%clk 0:00:15]} 30. Kd3 {[%clk 0:00:18]}  Qf5+ {[%clk 0:00:13]} 31. Kxe3 {[%clk 0:00:18]}  Qe4+ {[%clk 0:00:04]} 32. Kd2 {[%clk 0:00:18]}  Qc2+ {[%clk 0:00:02]} 33. Ke1 {[%clk 0:00:14]}  Qb1+ {[%clk 0:00:00]} 34. Rxb1 {[%clk 0:00:13]} 1-0

[Event "December 5 Late 2023"]
[Site "https://www.chess.com"]
[Date "2023.12.05"]
[Round "2"]
[White "Lopez Del Alamo, Antonio"]
[Black "Milosevic, Milos"]
[Result "0-1"]
[Board "142"]
[TimeControl "180+1"]
[WhiteFideId "2227339"]
[BlackFideId "964875"]
[WhiteElo "2295"]
[BlackElo "2497"]
[WhiteTeam "ESP"]
[BlackTeam "SRB"]
[WhiteClock "0:01:09"]
[BlackClock "0:01:45"]

1. e4 {[%clk 0:02:56]}  e5 {[%clk 0:03:00]} 2. Bc4 {[%clk 0:02:55]}  Qf6 {[%clk 0:02:54]} 3. d3 {[%clk 0:02:53]}  c6 {[%clk 0:02:53]} 4. Nc3 {[%clk 0:02:50]}  Bc5 {[%clk 0:02:50]} 5. Nf3 {[%clk 0:02:49]}  h6 {[%clk 0:02:45]} 6. O-O {[%clk 0:02:45]}  Ne7 {[%clk 0:02:45]} 7. Be3 {[%clk 0:02:44]}  d6 {[%clk 0:02:40]} 8. d4 {[%clk 0:02:31]}  exd4 {[%clk 0:02:36]} 9. Bxd4 {[%clk 0:02:30]}  Bxd4 {[%clk 0:02:33]} 10. Nxd4 {[%clk 0:02:31]}  Nd7 {[%clk 0:02:29]} 11. f4 {[%clk 0:02:24]}  O-O {[%clk 0:02:23]} 12. e5 {[%clk 0:02:11]}  dxe5 {[%clk 0:02:21]} 13. Ne4 {[%clk 0:02:10]}  Qg6 {[%clk 0:02:21]} 14. f5 {[%clk 0:02:09]}  Qh7 {[%clk 0:02:20]} 15. f6 {[%clk 0:01:56]}  gxf6 {[%clk 0:02:15]} 16. Bd3 {[%clk 0:01:55]}  Qg7 {[%clk 0:02:10]} 17. Nf3 {[%clk 0:01:50]}  f5 {[%clk 0:02:07]} 18. Nd6 {[%clk 0:01:46]}  e4 {[%clk 0:02:04]} 19. Nxc8 {[%clk 0:01:40]}  Raxc8 {[%clk 0:02:03]} 20. Bc4 {[%clk 0:01:38]}  Nb6 {[%clk 0:01:59]} 21. Nd2 {[%clk 0:01:37]}  Qd4+ {[%clk 0:01:55]} 22. Kh1 {[%clk 0:01:36]}  Nxc4 {[%clk 0:01:55]} 23. Nxc4 {[%clk 0:01:17]}  Qxc4 {[%clk 0:01:56]} 24. Qd6 {[%clk 0:01:09]}  Qe6 {[%clk 0:01:45]} 0-1

[Event "December 5 Late 2023"]
[Site "https://www.chess.com"]
[Date "2023.12.05"]
[Round "2"]
[White "Kovalevsky, Stanislav"]
[Black "Shapiro, Daniel"]
[Result "1-0"]
[Board "143"]
[TimeControl "180+1"]
[WhiteFideId "13508598"]
[BlackFideId "2001780"]
[WhiteElo "2497"]
[BlackElo "2288"]
[WhiteTeam "FID"]
[BlackTeam "USA"]
[WhiteClock "0:00:17"]
[BlackClock "0:00:12"]

1. e4 {[%clk 0:03:00]}  c5 {[%clk 0:02:58]} 2. c3 {[%clk 0:03:00]}  d5 {[%clk 0:02:55]} 3. exd5 {[%clk 0:03:00]}  Qxd5 {[%clk 0:02:56]} 4. Nf3 {[%clk 0:03:00]}  Nc6 {[%clk 0:02:53]} 5. d4 {[%clk 0:03:00]}  e6 {[%clk 0:02:52]} 6. Be2 {[%clk 0:02:55]}  cxd4 {[%clk 0:02:47]} 7. cxd4 {[%clk 0:02:56]}  Nf6 {[%clk 0:02:46]} 8. Nc3 {[%clk 0:02:55]}  Qd8 {[%clk 0:02:40]} 9. Bf4 {[%clk 0:02:52]}  Be7 {[%clk 0:02:31]} 10. O-O {[%clk 0:02:45]}  O-O {[%clk 0:02:31]} 11. Rc1 {[%clk 0:02:45]}  Nd5 {[%clk 0:02:23]} 12. Nxd5 {[%clk 0:02:45]}  Qxd5 {[%clk 0:02:23]} 13. a3 {[%clk 0:02:38]}  b6 {[%clk 0:02:08]} 14. Bd3 {[%clk 0:02:30]}  Bb7 {[%clk 0:02:02]} 15. Re1 {[%clk 0:02:30]}  Rad8 {[%clk 0:01:53]} 16. Be4 {[%clk 0:02:24]}  Qd7 {[%clk 0:01:50]} 17. Rxc6 {[%clk 0:02:19]}  Bxc6 {[%clk 0:01:43]} 18. Ne5 {[%clk 0:02:20]}  Qd6 {[%clk 0:00:34]} 19. Nxc6 {[%clk 0:01:24]}  Qxf4 {[%clk 0:00:33]} 20. Nxe7+ {[%clk 0:01:24]}  Kh8 {[%clk 0:00:33]} 21. Nc6 {[%clk 0:01:17]}  Rd6 {[%clk 0:00:33]} 22. g3 {[%clk 0:01:10]}  Qg5 {[%clk 0:00:31]} 23. Ne5 {[%clk 0:01:06]}  Kg8 {[%clk 0:00:27]} 24. h4 {[%clk 0:00:54]}  Qe7 {[%clk 0:00:20]} 25. Qh5 {[%clk 0:00:32]}  g6 {[%clk 0:00:19]} 26. Qf3 {[%clk 0:00:28]}  Rxd4 {[%clk 0:00:18]} 27. Nc6 {[%clk 0:00:28]}  Qc5 {[%clk 0:00:17]} 28. Nxd4 {[%clk 0:00:28]}  Qxd4 {[%clk 0:00:18]} 29. b4 {[%clk 0:00:26]}  Rc8 {[%clk 0:00:16]} 30. Rd1 {[%clk 0:00:25]}  Qe5 {[%clk 0:00:16]} 31. Rd7 {[%clk 0:00:24]}  f5 {[%clk 0:00:15]} 32. Bd3 {[%clk 0:00:19]}  Rc1+ {[%clk 0:00:14]} 33. Kg2 {[%clk 0:00:18]}  Rc8 {[%clk 0:00:13]} 34. Qb7 {[%clk 0:00:17]}  f4 {[%clk 0:00:12]} 35. Qxc8# {[%clk 0:00:17]} 1-0

[Event "December 5 Late 2023"]
[Site "https://www.chess.com"]
[Date "2023.12.05"]
[Round "2"]
[White "Dilmukhametov, Artur"]
[Black "Sarkar, Justin"]
[Result "1/2-1/2"]
[Board "144"]
[TimeControl "180+1"]
[WhiteFideId "24179922"]
[BlackFideId "2010011"]
[WhiteElo "2492"]
[BlackElo "2285"]
[WhiteTeam "RUS"]
[BlackTeam "USA"]
[WhiteClock "0:00:47"]
[BlackClock "0:00:26"]

1. e4 {[%clk 0:03:00]}  e5 {[%clk 0:02:41]} 2. Nf3 {[%clk 0:02:43]}  Nc6 {[%clk 0:02:40]} 3. Bc4 {[%clk 0:02:42]}  Bc5 {[%clk 0:02:38]} 4. c3 {[%clk 0:02:42]}  Nf6 {[%clk 0:02:37]} 5. d3 {[%clk 0:02:43]}  O-O {[%clk 0:02:31]} 6. O-O {[%clk 0:02:42]}  d6 {[%clk 0:02:27]} 7. Nbd2 {[%clk 0:02:41]}  h6 {[%clk 0:02:13]} 8. h3 {[%clk 0:02:36]}  a6 {[%clk 0:02:12]} 9. Re1 {[%clk 0:02:32]}  Be6 {[%clk 0:01:43]} 10. Bb3 {[%clk 0:02:24]}  Re8 {[%clk 0:01:33]} 11. Nf1 {[%clk 0:02:24]}  d5 {[%clk 0:01:27]} 12. d4 {[%clk 0:02:10]}  dxe4 {[%clk 0:01:10]} 13. dxc5 {[%clk 0:01:35]}  Qxd1 {[%clk 0:01:02]} 14. Bxd1 {[%clk 0:01:36]}  exf3 {[%clk 0:01:00]} 15. Bxf3 {[%clk 0:01:37]}  e4 {[%clk 0:00:59]} 16. Bd1 {[%clk 0:01:29]}  Ne5 {[%clk 0:00:55]} 17. Bc2 {[%clk 0:01:21]}  Nd3 {[%clk 0:00:50]} 18. Bxd3 {[%clk 0:01:17]}  exd3 {[%clk 0:00:50]} 19. Be3 {[%clk 0:01:11]}  Rad8 {[%clk 0:00:48]} 20. Nd2 {[%clk 0:01:08]}  Nd5 {[%clk 0:00:42]} 21. Bd4 {[%clk 0:00:58]}  Nf4 {[%clk 0:00:40]} 22. Be3 {[%clk 0:00:52]}  Nd5 {[%clk 0:00:39]} 23. Bd4 {[%clk 0:00:47]}  Nf4 {[%clk 0:00:39]} 24. Be3 {[%clk 0:00:47]}  Nd5 {[%clk 0:00:26]} 1/2-1/2

[Event "December 5 Late 2023"]
[Site "https://www.chess.com"]
[Date "2023.12.05"]
[Round "2"]
[White "Szente Varga, Fruzsina"]
[Black "Lin, Bryan Enming"]
[Result "0-1"]
[Board "145"]
[TimeControl "180+1"]
[WhiteFideId "712264"]
[BlackFideId "30987121"]
[WhiteElo "2276"]
[BlackElo "2490"]
[WhiteTeam "HUN"]
[BlackTeam "USA"]
[WhiteClock "0:01:59"]
[BlackClock "0:01:44"]

1. e4 {[%clk 0:02:55]}  e5 {[%clk 0:03:00]} 2. d4 {[%clk 0:02:53]}  exd4 {[%clk 0:03:00]} 3. Qxd4 {[%clk 0:02:53]}  Nc6 {[%clk 0:03:00]} 4. Qe3 {[%clk 0:02:54]}  Nf6 {[%clk 0:03:00]} 5. Bd2 {[%clk 0:02:55]}  Bb4 {[%clk 0:03:00]} 6. Nc3 {[%clk 0:02:55]}  O-O {[%clk 0:03:00]} 7. O-O-O {[%clk 0:02:54]}  Re8 {[%clk 0:02:55]} 8. f3 {[%clk 0:02:48]}  d5 {[%clk 0:02:51]} 9. Qg5 {[%clk 0:02:48]}  dxe4 {[%clk 0:02:35]} 10. Nxe4 {[%clk 0:02:41]}  Nxe4 {[%clk 0:02:28]} 11. Qxd8 {[%clk 0:02:39]}  Rxd8 {[%clk 0:02:03]} 12. Bxb4 {[%clk 0:02:38]}  Rxd1+ {[%clk 0:02:00]} 13. Kxd1 {[%clk 0:02:38]}  Nf2+ {[%clk 0:02:00]} 14. Ke1 {[%clk 0:02:35]}  Nxh1 {[%clk 0:01:58]} 15. Bc3 {[%clk 0:02:30]}  Bf5 {[%clk 0:01:56]} 16. Bd3 {[%clk 0:02:27]}  Bxd3 {[%clk 0:01:53]} 17. cxd3 {[%clk 0:02:27]}  Rd8 {[%clk 0:01:53]} 18. Ne2 {[%clk 0:02:23]}  Rxd3 {[%clk 0:01:52]} 19. Nf4 {[%clk 0:02:20]}  Rd7 {[%clk 0:01:50]} 20. g3 {[%clk 0:02:13]}  b5 {[%clk 0:01:46]} 21. a3 {[%clk 0:02:12]}  a5 {[%clk 0:01:44]} 22. b4 {[%clk 0:02:09]}  axb4 {[%clk 0:01:44]} 23. axb4 {[%clk 0:01:59]}  Nd4 {[%clk 0:01:44]} 0-1

[Event "December 5 Late 2023"]
[Site "https://www.chess.com"]
[Date "2023.12.05"]
[Round "2"]
[White "Polanco Nunez, Yoel Estarling"]
[Black "Novik, Maxim"]
[Result "1-0"]
[Board "147"]
[TimeControl "180+1"]
[WhiteFideId "6401783"]
[BlackFideId "4102924"]
[WhiteElo "2266"]
[BlackElo "2486"]
[WhiteTeam "DOM"]
[BlackTeam "LTU"]
[WhiteClock "0:00:26"]
[BlackClock "0:00:37"]

1. d4 {[%clk 0:03:00]}  Nf6 {[%clk 0:02:59]} 2. c4 {[%clk 0:03:01]}  g6 {[%clk 0:03:00]} 3. Nc3 {[%clk 0:03:01]}  d5 {[%clk 0:03:00]} 4. Nf3 {[%clk 0:03:00]}  Bg7 {[%clk 0:03:00]} 5. cxd5 {[%clk 0:02:59]}  Nxd5 {[%clk 0:03:00]} 6. e4 {[%clk 0:02:58]}  Nxc3 {[%clk 0:03:00]} 7. bxc3 {[%clk 0:02:59]}  c5 {[%clk 0:03:01]} 8. Bb5+ {[%clk 0:02:57]}  Nc6 {[%clk 0:03:00]} 9. O-O {[%clk 0:02:53]}  O-O {[%clk 0:02:59]} 10. Bxc6 {[%clk 0:02:53]}  bxc6 {[%clk 0:02:59]} 11. Be3 {[%clk 0:02:52]}  cxd4 {[%clk 0:02:56]} 12. Bxd4 {[%clk 0:02:49]}  Bg4 {[%clk 0:02:36]} 13. Bxg7 {[%clk 0:02:47]}  Kxg7 {[%clk 0:02:36]} 14. Qd4+ {[%clk 0:02:42]}  f6 {[%clk 0:02:28]} 15. Qxd8 {[%clk 0:02:25]}  Rfxd8 {[%clk 0:02:27]} 16. Rfd1 {[%clk 0:02:19]}  e5 {[%clk 0:02:20]} 17. Rab1 {[%clk 0:02:14]}  Rxd1+ {[%clk 0:02:13]} 18. Rxd1 {[%clk 0:02:14]}  Kf7 {[%clk 0:02:13]} 19. h3 {[%clk 0:02:10]}  Bxf3 {[%clk 0:02:11]} 20. gxf3 {[%clk 0:02:09]}  Ke7 {[%clk 0:02:06]} 21. Rb1 {[%clk 0:02:08]}  Rd8 {[%clk 0:02:06]} 22. Kf1 {[%clk 0:02:08]}  Kd6 {[%clk 0:02:04]} 23. Ke2 {[%clk 0:02:00]}  Rd7 {[%clk 0:01:58]} 24. Rd1+ {[%clk 0:01:34]}  Kc7 {[%clk 0:01:56]} 25. Rxd7+ {[%clk 0:01:34]}  Kxd7 {[%clk 0:01:56]} 26. Kd3 {[%clk 0:01:35]}  Kd6 {[%clk 0:01:50]} 27. Kc4 {[%clk 0:01:35]}  f5 {[%clk 0:01:49]} 28. exf5 {[%clk 0:01:31]}  gxf5 {[%clk 0:01:48]} 29. h4 {[%clk 0:01:21]}  h5 {[%clk 0:01:39]} 30. a3 {[%clk 0:01:15]}  a6 {[%clk 0:01:21]} 31. Kb4 {[%clk 0:00:54]}  Kd5 {[%clk 0:01:17]} 32. Ka5 {[%clk 0:00:54]}  e4 {[%clk 0:00:56]} 33. Kxa6 {[%clk 0:00:21]}  Kc4 {[%clk 0:00:48]} 34. Kb6 {[%clk 0:00:20]}  exf3 {[%clk 0:00:42]} 35. a4 {[%clk 0:00:18]}  Kd3 {[%clk 0:00:42]} 36. a5 {[%clk 0:00:18]}  Ke2 {[%clk 0:00:42]} 37. a6 {[%clk 0:00:19]}  Kxf2 {[%clk 0:00:42]} 38. a7 {[%clk 0:00:20]}  Kg2 {[%clk 0:00:42]} 39. a8=Q {[%clk 0:00:21]}  f2 {[%clk 0:00:42]} 40. Qxc6+ {[%clk 0:00:21]}  Kg1 {[%clk 0:00:42]} 41. Qc5 {[%clk 0:00:20]}  Kg2 {[%clk 0:00:42]} 42. Qd5+ {[%clk 0:00:19]}  Kg1 {[%clk 0:00:40]} 43. Qxf5 {[%clk 0:00:18]}  f1=Q {[%clk 0:00:39]} 44. Qxf1+ {[%clk 0:00:19]}  Kxf1 {[%clk 0:00:40]} 45. c4 {[%clk 0:00:20]}  Kg2 {[%clk 0:00:40]} 46. c5 {[%clk 0:00:21]}  Kg3 {[%clk 0:00:41]} 47. c6 {[%clk 0:00:22]}  Kxh4 {[%clk 0:00:42]} 48. c7 {[%clk 0:00:22]}  Kg3 {[%clk 0:00:42]} 49. c8=Q {[%clk 0:00:23]}  h4 {[%clk 0:00:42]} 50. Qb7 {[%clk 0:00:22]}  Kh2 {[%clk 0:00:42]} 51. Qc7+ {[%clk 0:00:21]}  Kg2 {[%clk 0:00:41]} 52. Qc6+ {[%clk 0:00:21]}  Kh2 {[%clk 0:00:41]} 53. Qd6+ {[%clk 0:00:21]}  Kg2 {[%clk 0:00:41]} 54. Qd5+ {[%clk 0:00:22]}  Kh2 {[%clk 0:00:41]} 55. Qe5+ {[%clk 0:00:22]}  Kg2 {[%clk 0:00:41]} 56. Qe4+ {[%clk 0:00:22]}  Kg3 {[%clk 0:00:41]} 57. Qh1 {[%clk 0:00:22]}  h3 {[%clk 0:00:41]} 58. Kc5 {[%clk 0:00:23]}  h2 {[%clk 0:00:40]} 59. Kd4 {[%clk 0:00:24]}  Kh3 {[%clk 0:00:41]} 60. Ke3 {[%clk 0:00:25]}  Kg3 {[%clk 0:00:41]} 61. Ke2 {[%clk 0:00:25]}  Kh3 {[%clk 0:00:41]} 62. Kf3 {[%clk 0:00:26]}  Kh4 {[%clk 0:00:37]} 63. Qxh2+ {[%clk 0:00:26]} 1-0

[Event "December 5 Late 2023"]
[Site "https://www.chess.com"]
[Date "2023.12.05"]
[Round "2"]
[White "Gao, Raymond"]
[Black "Minko, Dmitry"]
[Result "0-1"]
[Board "149"]
[TimeControl "180+1"]
[WhiteFideId "2629429"]
[BlackFideId "24188468"]
[WhiteElo "2251"]
[BlackElo "2483"]
[WhiteTeam "CAN"]
[BlackTeam "FID"]
[WhiteClock "0:00:02"]
[BlackClock "0:00:07"]

1. Nf3 {[%clk 0:03:00]}  d5 {[%clk 0:02:55]} 2. d4 {[%clk 0:03:00]}  Nf6 {[%clk 0:02:55]} 3. Bf4 {[%clk 0:03:01]}  e6 {[%clk 0:02:54]} 4. e3 {[%clk 0:03:01]}  c5 {[%clk 0:02:55]} 5. Nbd2 {[%clk 0:02:58]}  Nc6 {[%clk 0:02:55]} 6. c3 {[%clk 0:02:58]}  Nh5 {[%clk 0:02:54]} 7. Bg5 {[%clk 0:02:57]}  Qb6 {[%clk 0:02:54]} 8. Rb1 {[%clk 0:02:53]}  h6 {[%clk 0:02:54]} 9. Bh4 {[%clk 0:02:53]}  g5 {[%clk 0:02:54]} 10. Ne5 {[%clk 0:02:45]}  Nxe5 {[%clk 0:02:39]} 11. Qxh5 {[%clk 0:02:40]}  Ng6 {[%clk 0:02:38]} 12. Bg3 {[%clk 0:02:39]}  Bg7 {[%clk 0:02:30]} 13. Bd3 {[%clk 0:02:37]}  Ne7 {[%clk 0:02:28]} 14. a3 {[%clk 0:02:33]}  Bd7 {[%clk 0:02:25]} 15. h4 {[%clk 0:02:32]}  O-O-O {[%clk 0:01:55]} 16. Qxf7 {[%clk 0:02:29]}  cxd4 {[%clk 0:01:21]} 17. cxd4 {[%clk 0:02:24]}  Bxd4 {[%clk 0:01:20]} 18. exd4 {[%clk 0:02:23]}  Nc6 {[%clk 0:01:16]} 19. hxg5 {[%clk 0:02:06]}  Qxd4 {[%clk 0:01:11]} 20. Qf4 {[%clk 0:02:06]}  Qb6 {[%clk 0:01:00]} 21. Rc1 {[%clk 0:02:03]}  e5 {[%clk 0:01:00]} 22. Qxe5 {[%clk 0:02:03]}  Rhe8 {[%clk 0:00:56]} 23. gxh6 {[%clk 0:01:53]}  Rxe5+ {[%clk 0:00:55]} 24. Bxe5 {[%clk 0:01:54]}  Re8 {[%clk 0:00:40]} 25. Nf3 {[%clk 0:01:48]}  Kd8 {[%clk 0:00:36]} 26. Kf1 {[%clk 0:01:30]}  Nxe5 {[%clk 0:00:33]} 27. Nxe5 {[%clk 0:01:30]}  Qxb2 {[%clk 0:00:33]} 28. Nf7+ {[%clk 0:00:36]}  Ke7 {[%clk 0:00:33]} 29. Re1+ {[%clk 0:00:37]}  Kxf7 {[%clk 0:00:34]} 30. Rxe8 {[%clk 0:00:38]}  Bxe8 {[%clk 0:00:35]} 31. Rh3 {[%clk 0:00:29]}  Qa1+ {[%clk 0:00:20]} 32. Ke2 {[%clk 0:00:29]}  Qe5+ {[%clk 0:00:20]} 33. Kd2 {[%clk 0:00:27]}  Qg5+ {[%clk 0:00:08]} 34. Ke2 {[%clk 0:00:26]}  Qe5+ {[%clk 0:00:08]} 35. Kd2 {[%clk 0:00:26]}  Qb2+ {[%clk 0:00:08]} 36. Ke3 {[%clk 0:00:26]}  d4+ {[%clk 0:00:07]} 37. Kf4 {[%clk 0:00:19]}  Qc1+ {[%clk 0:00:07]} 38. Kg3 {[%clk 0:00:17]}  Qg5+ {[%clk 0:00:07]} 39. Kh2 {[%clk 0:00:18]}  Qe5+ {[%clk 0:00:07]} 40. Kg1 {[%clk 0:00:14]}  Bc6 {[%clk 0:00:02]} 41. h7 {[%clk 0:00:12]}  Qh8 {[%clk 0:00:02]} 42. Rg3 {[%clk 0:00:09]}  Qe8 {[%clk 0:00:02]} 43. Rg8 {[%clk 0:00:09]}  Qe1+ {[%clk 0:00:02]} 44. Kh2 {[%clk 0:00:08]}  Qe5+ {[%clk 0:00:03]} 45. g3 {[%clk 0:00:05]}  Qd5 {[%clk 0:00:03]} 46. Kh3 {[%clk 0:00:03]}  Qg2+ {[%clk 0:00:03]} 47. Kg4 {[%clk 0:00:04]}  Qf3+ {[%clk 0:00:03]} 48. Kh4 {[%clk 0:00:03]}  Qxd3 {[%clk 0:00:04]} 49. h8=Q {[%clk 0:00:03]}  Qe4+ {[%clk 0:00:05]} 50. Rg4 {[%clk 0:00:03]}  Qh1+ {[%clk 0:00:05]} 51. Kg5 {[%clk 0:00:03]}  Qxh8 {[%clk 0:00:05]} 52. Rf4+ {[%clk 0:00:03]}  Ke7 {[%clk 0:00:06]} 53. Re4+ {[%clk 0:00:03]}  Bxe4 {[%clk 0:00:06]} 54. f3 {[%clk 0:00:02]}  Bxf3 {[%clk 0:00:07]} 0-1

[Event "December 5 Late 2023"]
[Site "https://www.chess.com"]
[Date "2023.12.05"]
[Round "2"]
[White "Villa Tornero, Alex"]
[Black "Palmer, Reegan"]
[Result "1-0"]
[Board "150"]
[TimeControl "180+1"]
[WhiteFideId "54501091"]
[BlackFideId "14322145"]
[WhiteElo "2483"]
[BlackElo "2249"]
[WhiteTeam "ESP"]
[BlackTeam "RSA"]
[WhiteClock "0:02:02"]
[BlackClock "0:00:34"]

1. e4 {[%clk 0:03:00]}  c5 {[%clk 0:02:59]} 2. Nf3 {[%clk 0:03:00]}  d6 {[%clk 0:03:00]} 3. d4 {[%clk 0:03:01]}  cxd4 {[%clk 0:03:00]} 4. Nxd4 {[%clk 0:03:02]}  Nf6 {[%clk 0:03:01]} 5. Nc3 {[%clk 0:03:03]}  a6 {[%clk 0:03:02]} 6. Bg5 {[%clk 0:03:03]}  e6 {[%clk 0:03:02]} 7. Qd2 {[%clk 0:03:03]}  h6 {[%clk 0:03:02]} 8. Bxf6 {[%clk 0:03:03]}  Qxf6 {[%clk 0:03:01]} 9. O-O-O {[%clk 0:03:02]}  Nc6 {[%clk 0:03:01]} 10. Nxc6 {[%clk 0:03:01]}  bxc6 {[%clk 0:03:02]} 11. f4 {[%clk 0:03:02]}  g5 {[%clk 0:03:02]} 12. g3 {[%clk 0:03:00]}  Be7 {[%clk 0:02:39]} 13. Bg2 {[%clk 0:02:56]}  Bd7 {[%clk 0:02:36]} 14. e5 {[%clk 0:02:55]}  Qg6 {[%clk 0:02:24]} 15. exd6 {[%clk 0:02:52]}  Bf6 {[%clk 0:02:24]} 16. Ne4 {[%clk 0:02:49]}  Bg7 {[%clk 0:01:43]} 17. Nc5 {[%clk 0:02:43]}  Rb8 {[%clk 0:01:37]} 18. c3 {[%clk 0:02:42]}  Qf5 {[%clk 0:01:27]} 19. Nxa6 {[%clk 0:02:32]}  O-O {[%clk 0:01:07]} 20. Nxb8 {[%clk 0:02:31]}  Rxb8 {[%clk 0:01:07]} 21. fxg5 {[%clk 0:02:23]}  Qa5 {[%clk 0:01:04]} 22. a3 {[%clk 0:02:12]}  c5 {[%clk 0:00:47]} 23. gxh6 {[%clk 0:02:10]}  Bf6 {[%clk 0:00:48]} 24. Rhf1 {[%clk 0:02:09]}  Bd8 {[%clk 0:00:39]} 25. h7+ {[%clk 0:02:04]}  Kh8 {[%clk 0:00:34]} 26. Rxf7 {[%clk 0:02:02]} 1-0